Workbook

Sheet Gantt Chart
D1: Prosjekt: | E1: Testprosjekt
D2: Prosjekteier: | E2: NN | G2: Startdato: | H2: 2016-04-11
D3: Prosjektleder: | E3: Arne And | G3: Totalbudsjett:
D4: Dokumenteier: | E4: NN | K4: Alternativ startdato: | O4: 2016-04-11
D5: Sist oppdatert: | E5: 30.02.2016 | O5: 1 | P5: 2 | Q5: 3 | R5: 4 | S5: 5 | T5: =S5+3 -> 8 | U5: =T5+1 -> 9 | V5: =U5+1 -> 10 | W5: =V5+1 -> 11 | X5: =W5+1 -> 12 | Y5: =X5+3 -> 15 | Z5: =Y5+1 -> 16 | AA5: =Z5+1 -> 17 | AB5: =AA5+1 -> 18 | AC5: =AB5+1 -> 19 | AD5: =AC5+3 -> 22 | AE5: =AD5+1 -> 23 | AF5: =AE5+1 -> 24 | AG5: =AF5+1 -> 25 | AH5: =AG5+1 -> 26 | AI5: =AH5+3 -> 29 | AJ5: =AI5+1 -> 30 | AK5: =AJ5+1 -> 31 | AL5: =AK5+1 -> 32 | AM5: =AL5+1 -> 33 | AN5: =AM5+3 -> 36 | AO5: =AN5+1 -> 37 | AP5: =AO5+1 -> 38 | AQ5: =AP5+1 -> 39 | AR5: =AQ5+1 -> 40 | AS5: =AR5+3 -> 43 | AT5: =AS5+1 -> 44 | AU5: =AT5+1 -> 45 | AV5: =AU5+1 -> 46 | AW5: =AV5+1 -> 47 | AX5: =AW5+3 -> 50 | AY5: =AX5+1 -> 51 | AZ5: =AY5+1 -> 52 | BA5: =AZ5+1 -> 53 | BB5: =BA5+1 -> 54 | BC5: =BB5+3 -> 57 | BD5: =BC5+1 -> 58 | BE5: =BD5+1 -> 59 | BF5: =BE5+1 -> 60 | BG5: =BF5+1 -> 61 | BH5: =BG5+3 -> 64 | BI5: =BH5+1 -> 65 | BJ5: =BI5+1 -> 66 | BK5: =BJ5+1 -> 67 | BL5: =BK5+1 -> 68 | BM5: =BL5+3 -> 71 | BN5: =BM5+1 -> 72 | BO5: =BN5+1 -> 73 | BP5: =BO5+1 -> 74 | BQ5: =BP5+1 -> 75 | BR5: =BQ5+3 -> 78 | BS5: =BR5+1 -> 79 | BT5: =BS5+1 -> 80 | BU5: =BT5+1 -> 81 | BV5: =BU5+1 -> 82 | BW5: =BV5+3 -> 85 | BX5: =BW5+1 -> 86 | BY5: =BX5+1 -> 87 | BZ5: =BY5+1 -> 88 | CA5: =BZ5+1 -> 89 | CB5: =CA5+3 -> 92 | CC5: =CB5+1 -> 93 | CD5: =CC5+1 -> 94 | CE5: =CD5+1 -> 95 | CF5: =CE5+1 -> 96 | CG5: =CF5+3 -> 99 | CH5: =CG5+1 -> 100 | CI5: =CH5+1 -> 101 | CJ5: =CI5+1 -> 102 | CK5: =CJ5+1 -> 103 | CL5: =CK5+3 -> 106 | CM5: =CL5+1 -> 107 | CN5: =CM5+1 -> 108 | CO5: =CN5+1 -> 109 | CP5: =CO5+1 -> 110 | CQ5: =CP5+3 -> 113 | CR5: =CQ5+1 -> 114 | CS5: =CR5+1 -> 115 | CT5: =CS5+1 -> 116 | CU5: =CT5+1 -> 117 | CV5: =CU5+3 -> 120 | CW5: =CV5+1 -> 121 | CX5: =CW5+1 -> 122 | CY5: =CX5+1 -> 123 | CZ5: =CY5+1 -> 124 | DA5: =CZ5+3 -> 127 | DB5: =DA5+1 -> 128 | DC5: =DB5+1 -> 129 | DD5: =DC5+1 -> 130 | DE5: =DD5+1 -> 131 | DF5: =DE5+3 -> 134 | DG5: =DF5+1 -> 135 | DH5: =DG5+1 -> 136 | DI5: =DH5+1 -> 137 | DJ5: =DI5+1 -> 138 | DK5: =DJ5+3 -> 141 | DL5: =DK5+1 -> 142 | DM5: =DL5+1 -> 143 | DN5: =DM5+1 -> 144 | DO5: =DN5+1 -> 145 | DP5: =DO5+3 -> 148 | DQ5: =DP5+1 -> 149 | DR5: =DQ5+1 -> 150 | DS5: =DR5+1 -> 151 | DT5: =DS5+1 -> 152 | DU5: =DT5+3 -> 155 | DV5: =DU5+1 -> 156 | DW5: =DV5+1 -> 157 | DX5: =DW5+1 -> 158 | DY5: =DX5+1 -> 159 | DZ5: =DY5+3 -> 162 | EA5: =DZ5+1 -> 163 | EB5: =EA5+1 -> 164 | EC5: =EB5+1 -> 165 | ED5: =EC5+1 -> 166 | EE5: =ED5+3 -> 169 | EF5: =EE5+1 -> 170 | EG5: =EF5+1 -> 171 | EH5: =EG5+1 -> 172 | EI5: =EH5+1 -> 173 | EJ5: =EI5+3 -> 176 | EK5: =EJ5+1 -> 177 | EL5: =EK5+1 -> 178 | EM5: =EL5+1 -> 179 | EN5: =EM5+1 -> 180 | EO5: =EN5+3 -> 183 | EP5: =EO5+1 -> 184 | EQ5: =EP5+1 -> 185 | ER5: =EQ5+1 -> 186 | ES5: =ER5+1 -> 187 | ET5: =ES5+3 -> 190 | EU5: =ET5+1 -> 191 | EV5: =EU5+1 -> 192 | EW5: =EV5+1 -> 193 | EX5: =EW5+1 -> 194 | EY5: =EX5+3 -> 197 | EZ5: =EY5+1 -> 198 | FA5: =EZ5+1 -> 199 | FB5: =FA5+1 -> 200 | FC5: =FB5+1 -> 201 | FD5: =FC5+3 -> 204 | FE5: =FD5+1 -> 205 | FF5: =FE5+1 -> 206 | FG5: =FF5+1 -> 207 | FH5: =FG5+1 -> 208 | FI5: =FH5+3 -> 211 | FJ5: =FI5+1 -> 212 | FK5: =FJ5+1 -> 213 | FL5: =FK5+1 -> 214 | FM5: =FL5+1 -> 215 | FN5: =FM5+3 -> 218 | FO5: =FN5+1 -> 219 | FP5: =FO5+1 -> 220 | FQ5: =FP5+1 -> 221 | FR5: =FQ5+1 -> 222 | FS5: =FR5+3 -> 225 | FT5: =FS5+1 -> 226 | FU5: =FT5+1 -> 227 | FV5: =FU5+1 -> 228 | FW5: =FV5+1 -> 229 | FX5: =FW5+3 -> 232 | FY5: =FX5+1 -> 233 | FZ5: =FY5+1 -> 234 | GA5: =FZ5+1 -> 235 | GB5: =GA5+1 -> 236 | GC5: =GB5+3 -> 239 | GD5: =GC5+1 -> 240 | GE5: =GD5+1 -> 241 | GF5: =GE5+1 -> 242 | GG5: =GF5+1 -> 243 | GH5: =GG5+3 -> 246 | GI5: =GH5+1 -> 247 | GJ5: =GI5+1 -> 248 | GK5: =GJ5+1 -> 249 | GL5: =GK5+1 -> 250 | GM5: =GL5+3 -> 253 | GN5: =GM5+1 -> 254 | GO5: =GN5+1 -> 255 | GP5: =GO5+1 -> 256 | GQ5: =GP5+1 -> 257 | GR5: =GQ5+3 -> 260 | GS5: =GR5+1 -> 261 | GT5: =GS5+1 -> 262 | GU5: =GT5+1 -> 263 | GV5: =GU5+1 -> 264 | GW5: =GV5+3 -> 267 | GX5: =GW5+1 -> 268 | GY5: =GX5+1 -> 269 | GZ5: =GY5+1 -> 270 | HA5: =GZ5+1 -> 271 | HB5: =HA5+3 -> 274 | HC5: =HB5+1 -> 275 | HD5: =HC5+1 -> 276 | HE5: =HD5+1 -> 277 | HF5: =HE5+1 -> 278 | HG5: =HF5+3 -> 281 | HH5: =HG5+1 -> 282 | HI5: =HH5+1 -> 283 | HJ5: =HI5+1 -> 284 | HK5: =HJ5+1 -> 285 | HL5: =HK5+3 -> 288 | HM5: =HL5+1 -> 289 | HN5: =HM5+1 -> 290 | HO5: =HN5+1 -> 291 | HP5: =HO5+1 -> 292 | HQ5: =HP5+3 -> 295 | HR5: =HQ5+1 -> 296 | HS5: =HR5+1 -> 297 | HT5: =HS5+1 -> 298 | HU5: =HT5+1 -> 299 | HV5: =HU5+3 -> 302 | HW5: =HV5+1 -> 303 | HX5: =HW5+1 -> 304 | HY5: =HX5+1 -> 305 | HZ5: =HY5+1 -> 306 | IA5: =HZ5+3 -> 309 | IB5: =IA5+1 -> 310 | IC5: =IB5+1 -> 311 | ID5: =IC5+1 -> 312 | IE5: =ID5+1 -> 313 | IF5: =IE5+3 -> 316 | IG5: =IF5+1 -> 317 | IH5: =IG5+1 -> 318 | II5: =IH5+1 -> 319 | IJ5: =II5+1 -> 320 | IK5: =IJ5+3 -> 323 | IL5: =IK5+1 -> 324 | IM5: =IL5+1 -> 325 | IN5: =IM5+1 -> 326 | IO5: =IN5+1 -> 327 | IP5: =IO5+3 -> 330 | IQ5: =IP5+1 -> 331 | IR5: =IQ5+1 -> 332 | IS5: =IR5+1 -> 333 | IT5: =IS5+1 -> 334
A6: WBS | C6: AKTIVITET | D6: Ressurs | E6: Planlagt startdato | F6: Planlagt ferdig dato | G6: Faktisk ferdig dato | H6: Status | I6: Status farge | J6: Estimerte timer | K6: Faktiske timer | L6: Cal Start | M6: Cal End | N6: Dager | O6: =IF(O4="",H2,O4) -> 2016-04-11 | T6: =O6+7 -> 2016-04-18 | Y6: =T6+7 -> 2016-04-25 | AD6: =Y6+7 -> 2016-05-02 | AI6: =AD6+7 -> 2016-05-09 | AN6: =AI6+7 -> 2016-05-16 | AS6: =AN6+7 -> 2016-05-23 | AX6: =AS6+7 -> 2016-05-30 | BC6: =AX6+7 -> 2016-06-06 | BH6: =BC6+7 -> 2016-06-13 | BM6: =BH6+7 -> 2016-06-20 | BR6: =BM6+7 -> 2016-06-27 | BW6: =BR6+7 -> 2016-07-04 | CB6: =BW6+7 -> 2016-07-11 | CG6: =CB6+7 -> 2016-07-18 | CL6: =CG6+7 -> 2016-07-25 | CQ6: =CL6+7 -> 2016-08-01 | CV6: =CQ6+7 -> 2016-08-08 | DA6: =CV6+7 -> 2016-08-15 | DF6: =DA6+7 -> 2016-08-22 | DK6: =DF6+7 -> 2016-08-29 | DP6: =DK6+7 -> 2016-09-05 | DU6: =DP6+7 -> 2016-09-12 | DZ6: =DU6+7 -> 2016-09-19 | EE6: =DZ6+7 -> 2016-09-26 | EJ6: =EE6+7 -> 2016-10-03 | EO6: =EJ6+7 -> 2016-10-10 | ET6: =EO6+7 -> 2016-10-17 | EY6: =ET6+7 -> 2016-10-24 | FD6: =EY6+7 -> 2016-10-31 | FI6: =FD6+7 -> 2016-11-07 | FN6: =FI6+7 -> 2016-11-14 | FS6: =FN6+7 -> 2016-11-21 | FX6: =FS6+7 -> 2016-11-28 | GC6: =FX6+7 -> 2016-12-05 | GH6: =GC6+7 -> 2016-12-12 | GM6: =GH6+7 -> 2016-12-19 | GR6: =GM6+7 -> 2016-12-26 | GW6: =GR6+7 -> 2017-01-02 | HB6: =GW6+7 -> 2017-01-09 | HG6: =HB6+7 -> 2017-01-16 | HL6: =HG6+7 -> 2017-01-23 | HQ6: =HL6+7 -> 2017-01-30 | HV6: =HQ6+7 -> 2017-02-06 | IA6: =HV6+7 -> 2017-02-13 | IF6: =IA6+7 -> 2017-02-20 | IK6: =IF6+7 -> 2017-02-27 | IP6: =IK6+7 -> 2017-03-06
A7: 1 | C7: Milepæl - Villsvinkvoter | E7: 2016-04-11 | F7: 2016-12-31 | G7: =MAX(G8:G17) -> 00:00:00 | I7: =IF(H7="Ferdig","GRØNN",IF(H7="I henhold til plan","GRØNN",IF(H7="Forsinket - påvirker ikke leveranse","GUL",IF(H7="Forsinket - påvirker leveranse","RØD"," ")))) ->  | J7: =VLOOKUP(A7,Aktivitetsplan!A:X,21,FALSE) -> 0 | K7: =VLOOKUP(A7,Aktivitetsplan!A:X,22,FALSE) -> 0 | L7: =MIN(L8:L17) -> 2 | M7: =MAX(M8:M17) -> 193 | N7: =SUM(O7:IT7) -> 138 | O7: =IF(AND(O$5>=$L7,O$5<=$M7),1,"") ->  | P7: 1 | Q7: 1 | R7: 1 | S7: 1 | T7: 1 | U7: 1 | V7: 1 | W7: 1 | X7: 1 | Y7: =IF(AND(Y$5>=$L7,Y$5<=$M7),1,"") -> 1 | Z7: 1 | AA7: 1 | AB7: 1 | AC7: 1 | AD7: 1 | AE7: 1 | AF7: 1 | AG7: 1 | AH7: 1 | AI7: =IF(AND(AI$5>=$L7,AI$5<=$M7),1,"") -> 1 | AJ7: 1 | AK7: 1 | AL7: 1 | AM7: 1 | AN7: 1 | AO7: 1 | AP7: 1 | AQ7: 1 | AR7: 1 | AS7: =IF(AND(AS$5>=$L7,AS$5<=$M7),1,"") -> 1 | AT7: 1 | AU7: 1 | AV7: 1 | AW7: 1 | AX7: 1 | AY7: 1 | AZ7: 1 | BA7: 1 | BB7: 1 | BC7: =IF(AND(BC$5>=$L7,BC$5<=$M7),1,"") -> 1 | BD7: 1 | BE7: 1 | BF7: 1 | BG7: 1 | BH7: 1 | BI7: 1 | BJ7: 1 | BK7: 1 | BL7: 1 | BM7: =IF(AND(BM$5>=$L7,BM$5<=$M7),1,"") -> 1 | BN7: 1 | BO7: 1 | BP7: 1 | BQ7: 1 | BR7: 1 | BS7: 1 | BT7: 1 | BU7: 1 | BV7: 1 | BW7: =IF(AND(BW$5>=$L7,BW$5<=$M7),1,"") -> 1 | BX7: 1 | BY7: 1 | BZ7: 1 | CA7: 1 | CB7: 1 | CC7: 1 | CD7: 1 | CE7: 1 | CF7: 1 | CG7: =IF(AND(CG$5>=$L7,CG$5<=$M7),1,"") -> 1 | CH7: 1 | CI7: 1 | CJ7: 1 | CK7: 1 | CL7: 1 | CM7: 1 | CN7: 1 | CO7: 1 | CP7: 1 | CQ7: =IF(AND(CQ$5>=$L7,CQ$5<=$M7),1,"") -> 1 | CR7: 1 | CS7: 1 | CT7: 1 | CU7: 1 | CV7: 1 | CW7: 1 | CX7: 1 | CY7: 1 | CZ7: 1 | DA7: =IF(AND(DA$5>=$L7,DA$5<=$M7),1,"") -> 1 | DB7: 1 | DC7: 1 | DD7: 1 | DE7: 1 | DF7: 1 | DG7: 1 | DH7: 1 | DI7: 1 | DJ7: 1 | DK7: =IF(AND(DK$5>=$L7,DK$5<=$M7),1,"") -> 1 | DL7: 1 | DM7: 1 | DN7: 1 | DO7: 1 | DP7: 1 | DQ7: 1 | DR7: 1 | DS7: 1 | DT7: 1 | DU7: =IF(AND(DU$5>=$L7,DU$5<=$M7),1,"") -> 1 | DV7: 1 | DW7: 1 | DX7: 1 | DY7: 1 | DZ7: 1 | EA7: 1 | EB7: 1 | EC7: 1 | ED7: 1 | EE7: =IF(AND(EE$5>=$L7,EE$5<=$M7),1,"") -> 1 | EF7: 1 | EG7: 1 | EH7: 1 | EI7: 1 | EJ7: 1 | EK7: 1 | EL7: 1 | EM7: 1 | EN7: 1 | EO7: =IF(AND(EO$5>=$L7,EO$5<=$M7),1,"") -> 1 | EP7: 1 | EQ7: 1 | ER7: 1 | ES7: 1 | ET7: 1 | EU7: 1 | EV7: 1 | EW7: 1 | EY7: =IF(AND(EY$5>=$L7,EY$5<=$M7),1,"") ->  | FI7: =IF(AND(FI$5>=$L7,FI$5<=$M7),1,"") ->  | FS7: =IF(AND(FS$5>=$L7,FS$5<=$M7),1,"") ->  | GC7: =IF(AND(GC$5>=$L7,GC$5<=$M7),1,"") ->  | GM7: =IF(AND(GM$5>=$L7,GM$5<=$M7),1,"") ->  | GW7: =IF(AND(GW$5>=$L7,GW$5<=$M7),1,"") ->  | HG7: =IF(AND(HG$5>=$L7,HG$5<=$M7),1,"") ->  | HQ7: =IF(AND(HQ$5>=$L7,HQ$5<=$M7),1,"") ->  | IA7: =IF(AND(IA$5>=$L7,IA$5<=$M7),1,"") ->  | IK7: =IF(AND(IK$5>=$L7,IK$5<=$M7),1,"") -> 
A8: 1.1 | B8: x | C8: Test 1 | D8: Asterix | E8: 2016-04-12 | F8: 2016-06-15 | H8: I henhold til plan | I8: =IF(H8="Ferdig","GRØNN",IF(H8="I henhold til plan","GRØNN",IF(H8="Forsinket - påvirker ikke leveranse","GUL",IF(H8="Forsinket - påvirker leveranse","RØD"," ")))) -> GRØNN | J8: =VLOOKUP(A8,Aktivitetsplan!A:X,21,FALSE) -> 0 | K8: =VLOOKUP(A8,Aktivitetsplan!A:X,22,FALSE) -> 0 | L8: =IF(E8=H$2,E8,E8-$O$4+1) -> 2 | M8: =IF(F8=H$2,H$2,F8-$O$4+1) -> 66 | N8: 47 | O8: =IF(AND(O$5>=$L8,O$5<=$M8),1,"") ->  | P8: 1 | Q8: 1 | R8: 1 | S8: 1 | T8: 1 | U8: 1 | V8: 1 | W8: 1 | X8: 1 | Y8: 1 | Z8: 1 | AA8: 1 | AB8: 1 | AC8: 1 | AD8: 1 | AE8: 1 | AF8: 1 | AG8: 1 | AH8: 1 | AI8: 1 | AJ8: 1 | AK8: 1 | AL8: 1 | AM8: 1 | AN8: 1 | AO8: 1 | AP8: 1 | AQ8: 1 | AR8: 1 | AS8: 1 | AT8: 1 | AU8: 1 | AV8: 1 | AW8: 1 | AX8: 1 | AY8: 1 | AZ8: 1 | BA8: 1 | BB8: 1 | BC8: 1 | BD8: 1 | BE8: 1 | BF8: 1 | BG8: 1 | BH8: 1 | BI8: 1 | BJ8: 1
A9: 1.2 | B9: x | C9: Test 2 | D9: Obelix | E9: 2016-05-30 | F9: 2016-10-20 | H9: I henhold til plan | I9: =IF(H9="Ferdig","GRØNN",IF(H9="I henhold til plan","GRØNN",IF(H9="Forsinket - påvirker ikke leveranse","GUL",IF(H9="Forsinket - påvirker leveranse","RØD"," ")))) -> GRØNN | J9: =VLOOKUP(A9,Aktivitetsplan!A:X,21,FALSE) -> 0 | K9: =VLOOKUP(A9,Aktivitetsplan!A:X,22,FALSE) -> 0 | L9: =IF(E9=H$2,O$4,E9-$O$4+1) -> 50 | M9: =IF(F9=H$2,H$2,F9-$O$4+1) -> 193 | N9: 104 | AX9: 1 | AY9: 1 | AZ9: 1 | BA9: 1 | BB9: 1 | BC9: 1 | BD9: 1 | BE9: 1 | BF9: 1 | BG9: 1 | BH9: 1 | BI9: 1 | BJ9: 1 | BK9: 1 | BL9: 1 | BM9: 1 | BN9: 1 | BO9: 1 | BP9: 1 | BQ9: 1 | BR9: 1 | BS9: 1 | BT9: 1 | BU9: 1 | BV9: 1 | BW9: 1 | BX9: 1 | BY9: 1 | BZ9: 1 | CA9: 1 | CB9: 1 | CC9: 1 | CD9: 1 | CE9: 1 | CF9: 1 | CG9: 1 | CH9: 1 | CI9: 1 | CJ9: 1 | CK9: 1 | CL9: 1 | CM9: 1 | CN9: 1 | CO9: 1 | CP9: 1 | CQ9: 1 | CR9: 1 | CS9: 1 | CT9: 1 | CU9: 1 | CV9: 1 | CW9: 1 | CX9: 1 | CY9: 1 | CZ9: 1 | DA9: 1 | DB9: 1 | DC9: 1 | DD9: 1 | DE9: 1 | DF9: 1 | DG9: 1 | DH9: 1 | DI9: 1 | DJ9: 1 | DK9: 1 | DL9: 1 | DM9: 1 | DN9: 1 | DO9: 1 | DP9: 1 | DQ9: 1 | DR9: 1 | DS9: 1 | DT9: 1 | DU9: 1 | DV9: 1 | DW9: 1 | DX9: 1 | DY9: 1 | DZ9: 1 | EA9: 1 | EB9: 1 | EC9: 1 | ED9: 1 | EE9: 1 | EF9: 1 | EG9: 1 | EH9: 1 | EI9: 1 | EJ9: 1 | EK9: 1 | EL9: 1 | EM9: 1 | EN9: 1 | EO9: 1 | EP9: 1 | EQ9: 1 | ER9: 1 | ES9: 1 | ET9: 1 | EU9: 1 | EV9: 1 | EW9: 1
A10: 1.3 | B10: x | C10: Aktivitet | D10: <Navn> | H10: Forsinket - påvirker ikke leveranse | I10: GUL | J10: =VLOOKUP(A10,Aktivitetsplan!A:X,21,FALSE) -> 0 | K10: =VLOOKUP(A10,Aktivitetsplan!A:X,22,FALSE) -> 0 | L10: =IF(E10=F$5,H$5,E10-$O$6+1) ->  | M10: =IF(F10=H$2,H$2,F10-$O$4+1) -> -42470 | N10: 0
A11: 1.4 | B11: x | C11: Aktivitet | D11: <Navn> | H11: Forsinket - påvirker leveranse | I11: RØD | J11: =VLOOKUP(A11,Aktivitetsplan!A:X,21,FALSE) -> 0 | K11: =VLOOKUP(A11,Aktivitetsplan!A:X,22,FALSE) -> 0 | L11: =IF(E11=F$5,H$5,E11-$O$6+1) ->  | M11: =IF(F11=H$2,H$2,F11-$O$4+1) -> -42470 | N11: 0
A12: 1.5 | B12: x | C12: Aktivitet | J12: =VLOOKUP(A12,Aktivitetsplan!A:X,21,FALSE) -> 0 | K12: =VLOOKUP(A12,Aktivitetsplan!A:X,22,FALSE) -> 0 | M12: =IF(F12=F$5,F$5,F12-$O$6+1) -> 0 | N12: 0
A13: 1.6 | B13: x | C13: Aktivitet | J13: =VLOOKUP(A13,Aktivitetsplan!A:X,21,FALSE) -> 0 | K13: =VLOOKUP(A13,Aktivitetsplan!A:X,22,FALSE) -> 0 | M13: 0 | N13: 0
A14: 1.7 | B14: x | C14: Aktivitet | J14: =VLOOKUP(A14,Aktivitetsplan!A:X,21,FALSE) -> 0 | K14: =VLOOKUP(A14,Aktivitetsplan!A:X,22,FALSE) -> 0 | M14: 0 | N14: 0
A15: 1.8 | B15: x | C15: Aktivitet | J15: =VLOOKUP(A15,Aktivitetsplan!A:X,21,FALSE) -> 0 | K15: =VLOOKUP(A15,Aktivitetsplan!A:X,22,FALSE) -> 0 | M15: 0 | N15: 0
A16: 1.9 | B16: x | C16: Aktivitet | J16: =VLOOKUP(A16,Aktivitetsplan!A:X,21,FALSE) -> 0 | K16: =VLOOKUP(A16,Aktivitetsplan!A:X,22,FALSE) -> 0 | M16: 0 | N16: 0
A17: 1.10 | B17: x | C17: Aktivitet | J17: =VLOOKUP(A17,Aktivitetsplan!A:X,21,FALSE) -> 0 | K17: =VLOOKUP(A17,Aktivitetsplan!A:X,22,FALSE) -> 0 | M17: 0 | N17: 0 | O17: =IF(AND(O$5>=$L17,O$5<=$M17),1,"") ->  | Y17: =IF(AND(Y$5>=$L17,Y$5<=$M17),1,"") ->  | AI17: =IF(AND(AI$5>=$L17,AI$5<=$M17),1,"") ->  | AS17: =IF(AND(AS$5>=$L17,AS$5<=$M17),1,"") ->  | BC17: =IF(AND(BC$5>=$L17,BC$5<=$M17),1,"") ->  | BM17: =IF(AND(BM$5>=$L17,BM$5<=$M17),1,"") ->  | BW17: =IF(AND(BW$5>=$L17,BW$5<=$M17),1,"") ->  | CG17: =IF(AND(CG$5>=$L17,CG$5<=$M17),1,"") ->  | CQ17: =IF(AND(CQ$5>=$L17,CQ$5<=$M17),1,"") ->  | DA17: =IF(AND(DA$5>=$L17,DA$5<=$M17),1,"") ->  | DK17: =IF(AND(DK$5>=$L17,DK$5<=$M17),1,"") ->  | DU17: =IF(AND(DU$5>=$L17,DU$5<=$M17),1,"") ->  | EE17: =IF(AND(EE$5>=$L17,EE$5<=$M17),1,"") ->  | EO17: =IF(AND(EO$5>=$L17,EO$5<=$M17),1,"") ->  | EY17: =IF(AND(EY$5>=$L17,EY$5<=$M17),1,"") ->  | FI17: =IF(AND(FI$5>=$L17,FI$5<=$M17),1,"") ->  | FS17: =IF(AND(FS$5>=$L17,FS$5<=$M17),1,"") ->  | GC17: =IF(AND(GC$5>=$L17,GC$5<=$M17),1,"") ->  | GM17: =IF(AND(GM$5>=$L17,GM$5<=$M17),1,"") ->  | GW17: =IF(AND(GW$5>=$L17,GW$5<=$M17),1,"") ->  | HG17: =IF(AND(HG$5>=$L17,HG$5<=$M17),1,"") ->  | HQ17: =IF(AND(HQ$5>=$L17,HQ$5<=$M17),1,"") ->  | IA17: =IF(AND(IA$5>=$L17,IA$5<=$M17),1,"") ->  | IK17: =IF(AND(IK$5>=$L17,IK$5<=$M17),1,"") -> 
A18: 2 | C18: Milepæl | E18: =MIN(E19:E28) -> 00:00:00 | F18: =MAX(F19:F28) -> 00:00:00 | G18: =MAX(G19:G28) -> 00:00:00 | J18: =VLOOKUP(A18,Aktivitetsplan!A:X,21,FALSE) -> 0 | K18: =VLOOKUP(A18,Aktivitetsplan!A:X,22,FALSE) -> 0 | L18: =MIN(L19:L28) -> 0 | M18: =MAX(M19:M28) -> 0 | N18: 0
A19: 2.1 | B19: x | C19: Aktivitet | J19: =VLOOKUP(A19,Aktivitetsplan!A:X,21,FALSE) -> 0 | K19: =VLOOKUP(A19,Aktivitetsplan!A:X,22,FALSE) -> 0 | L19: =IF(E19=F$5,H$5,E19-$O$6+1) ->  | M19: =IF(F19=F$5,F$5,F19-$O$6+1) -> 0 | N19: 0
A20: 2.2 | B20: x | C20: Aktivitet | J20: =VLOOKUP(A20,Aktivitetsplan!A:X,21,FALSE) -> 0 | K20: =VLOOKUP(A20,Aktivitetsplan!A:X,22,FALSE) -> 0 | M20: 0 | N20: 0
A21: 2.3 | B21: x | C21: Aktivitet | J21: =VLOOKUP(A21,Aktivitetsplan!A:X,21,FALSE) -> 0 | K21: =VLOOKUP(A21,Aktivitetsplan!A:X,22,FALSE) -> 0 | M21: 0 | N21: 0
A22: 2.4 | B22: x | C22: Aktivitet | J22: =VLOOKUP(A22,Aktivitetsplan!A:X,21,FALSE) -> 0 | K22: =VLOOKUP(A22,Aktivitetsplan!A:X,22,FALSE) -> 0 | M22: 0 | N22: 0
A23: 2.5 | B23: x | C23: Aktivitet | J23: =VLOOKUP(A23,Aktivitetsplan!A:X,21,FALSE) -> 0 | K23: =VLOOKUP(A23,Aktivitetsplan!A:X,22,FALSE) -> 0 | M23: 0 | N23: 0
A24: 2.6 | B24: x | C24: Aktivitet | J24: =VLOOKUP(A24,Aktivitetsplan!A:X,21,FALSE) -> 0 | K24: =VLOOKUP(A24,Aktivitetsplan!A:X,22,FALSE) -> 0 | M24: 0 | N24: 0
A25: 2.7 | B25: x | C25: Aktivitet | J25: =VLOOKUP(A25,Aktivitetsplan!A:X,21,FALSE) -> 0 | K25: =VLOOKUP(A25,Aktivitetsplan!A:X,22,FALSE) -> 0 | M25: 0 | N25: 0
A26: 2.8 | B26: x | C26: Aktivitet | J26: =VLOOKUP(A26,Aktivitetsplan!A:X,21,FALSE) -> 0 | K26: =VLOOKUP(A26,Aktivitetsplan!A:X,22,FALSE) -> 0 | M26: 0 | N26: 0
A27: 2.9 | B27: x | C27: Aktivitet | J27: =VLOOKUP(A27,Aktivitetsplan!A:X,21,FALSE) -> 0 | K27: =VLOOKUP(A27,Aktivitetsplan!A:X,22,FALSE) -> 0 | M27: 0 | N27: 0 | O27: =IF(AND(O$5>=$L27,O$5<=$M27),1,"") ->  | Y27: =IF(AND(Y$5>=$L27,Y$5<=$M27),1,"") ->  | AI27: =IF(AND(AI$5>=$L27,AI$5<=$M27),1,"") ->  | AS27: =IF(AND(AS$5>=$L27,AS$5<=$M27),1,"") ->  | BC27: =IF(AND(BC$5>=$L27,BC$5<=$M27),1,"") ->  | BM27: =IF(AND(BM$5>=$L27,BM$5<=$M27),1,"") ->  | BW27: =IF(AND(BW$5>=$L27,BW$5<=$M27),1,"") ->  | CG27: =IF(AND(CG$5>=$L27,CG$5<=$M27),1,"") ->  | CQ27: =IF(AND(CQ$5>=$L27,CQ$5<=$M27),1,"") ->  | DA27: =IF(AND(DA$5>=$L27,DA$5<=$M27),1,"") ->  | DK27: =IF(AND(DK$5>=$L27,DK$5<=$M27),1,"") ->  | DU27: =IF(AND(DU$5>=$L27,DU$5<=$M27),1,"") ->  | EE27: =IF(AND(EE$5>=$L27,EE$5<=$M27),1,"") ->  | EO27: =IF(AND(EO$5>=$L27,EO$5<=$M27),1,"") ->  | EY27: =IF(AND(EY$5>=$L27,EY$5<=$M27),1,"") ->  | FI27: =IF(AND(FI$5>=$L27,FI$5<=$M27),1,"") ->  | FS27: =IF(AND(FS$5>=$L27,FS$5<=$M27),1,"") ->  | GC27: =IF(AND(GC$5>=$L27,GC$5<=$M27),1,"") ->  | GM27: =IF(AND(GM$5>=$L27,GM$5<=$M27),1,"") ->  | GW27: =IF(AND(GW$5>=$L27,GW$5<=$M27),1,"") ->  | HG27: =IF(AND(HG$5>=$L27,HG$5<=$M27),1,"") ->  | HQ27: =IF(AND(HQ$5>=$L27,HQ$5<=$M27),1,"") ->  | IA27: =IF(AND(IA$5>=$L27,IA$5<=$M27),1,"") ->  | IK27: =IF(AND(IK$5>=$L27,IK$5<=$M27),1,"") -> 
A28: 2.10 | B28: x | C28: Aktivitet | J28: =VLOOKUP(A28,Aktivitetsplan!A:X,21,FALSE) -> 0 | K28: =VLOOKUP(A28,Aktivitetsplan!A:X,22,FALSE) -> 0 | M28: 0 | N28: 0
A29: 3 | C29: Milepæl | E29: =MIN(E30:E39) -> 00:00:00 | F29: =MAX(F30:F39) -> 00:00:00 | G29: =MAX(G30:G39) -> 00:00:00 | J29: =VLOOKUP(A29,Aktivitetsplan!A:X,21,FALSE) -> 0 | K29: =VLOOKUP(A29,Aktivitetsplan!A:X,22,FALSE) -> 0 | L29: =MIN(L30:L39) -> 0 | M29: =MAX(M30:M39) -> 0 | N29: 0
A30: 3.1 | B30: x | C30: Aktivitet | J30: =VLOOKUP(A30,Aktivitetsplan!A:X,21,FALSE) -> 0 | K30: =VLOOKUP(A30,Aktivitetsplan!A:X,22,FALSE) -> 0 | L30: =IF(E30=F$5,H$5,E30-$O$6+1) ->  | M30: =IF(F30=F$5,F$5,F30-$O$6+1) -> 0 | N30: 0
A31: 3.2 | B31: x | C31: Aktivitet | J31: =VLOOKUP(A31,Aktivitetsplan!A:X,21,FALSE) -> 0 | K31: =VLOOKUP(A31,Aktivitetsplan!A:X,22,FALSE) -> 0 | M31: 0 | N31: 0
A32: 3.3 | B32: x | C32: Aktivitet | J32: =VLOOKUP(A32,Aktivitetsplan!A:X,21,FALSE) -> 0 | K32: =VLOOKUP(A32,Aktivitetsplan!A:X,22,FALSE) -> 0 | M32: 0 | N32: 0
A33: 3.4 | B33: x | C33: Aktivitet | J33: =VLOOKUP(A33,Aktivitetsplan!A:X,21,FALSE) -> 0 | K33: =VLOOKUP(A33,Aktivitetsplan!A:X,22,FALSE) -> 0 | M33: 0 | N33: 0
A34: 3.5 | B34: x | C34: Aktivitet | J34: =VLOOKUP(A34,Aktivitetsplan!A:X,21,FALSE) -> 0 | K34: =VLOOKUP(A34,Aktivitetsplan!A:X,22,FALSE) -> 0 | M34: 0 | N34: 0
A35: 3.6 | B35: x | C35: Aktivitet | J35: =VLOOKUP(A35,Aktivitetsplan!A:X,21,FALSE) -> 0 | K35: =VLOOKUP(A35,Aktivitetsplan!A:X,22,FALSE) -> 0 | M35: 0 | N35: 0
A36: 3.7 | B36: x | C36: Aktivitet | J36: =VLOOKUP(A36,Aktivitetsplan!A:X,21,FALSE) -> 0 | K36: =VLOOKUP(A36,Aktivitetsplan!A:X,22,FALSE) -> 0 | M36: 0 | N36: 0
A37: 3.8 | B37: x | C37: Aktivitet | J37: =VLOOKUP(A37,Aktivitetsplan!A:X,21,FALSE) -> 0 | K37: =VLOOKUP(A37,Aktivitetsplan!A:X,22,FALSE) -> 0 | M37: 0 | N37: 0 | O37: =IF(AND(O$5>=$L37,O$5<=$M37),1,"") ->  | Y37: =IF(AND(Y$5>=$L37,Y$5<=$M37),1,"") ->  | AI37: =IF(AND(AI$5>=$L37,AI$5<=$M37),1,"") ->  | AS37: =IF(AND(AS$5>=$L37,AS$5<=$M37),1,"") ->  | BC37: =IF(AND(BC$5>=$L37,BC$5<=$M37),1,"") ->  | BM37: =IF(AND(BM$5>=$L37,BM$5<=$M37),1,"") ->  | BW37: =IF(AND(BW$5>=$L37,BW$5<=$M37),1,"") ->  | CG37: =IF(AND(CG$5>=$L37,CG$5<=$M37),1,"") ->  | CQ37: =IF(AND(CQ$5>=$L37,CQ$5<=$M37),1,"") ->  | DA37: =IF(AND(DA$5>=$L37,DA$5<=$M37),1,"") ->  | DK37: =IF(AND(DK$5>=$L37,DK$5<=$M37),1,"") ->  | DU37: =IF(AND(DU$5>=$L37,DU$5<=$M37),1,"") ->  | EE37: =IF(AND(EE$5>=$L37,EE$5<=$M37),1,"") ->  | EO37: =IF(AND(EO$5>=$L37,EO$5<=$M37),1,"") ->  | EY37: =IF(AND(EY$5>=$L37,EY$5<=$M37),1,"") ->  | FI37: =IF(AND(FI$5>=$L37,FI$5<=$M37),1,"") ->  | FS37: =IF(AND(FS$5>=$L37,FS$5<=$M37),1,"") ->  | GC37: =IF(AND(GC$5>=$L37,GC$5<=$M37),1,"") ->  | GM37: =IF(AND(GM$5>=$L37,GM$5<=$M37),1,"") ->  | GW37: =IF(AND(GW$5>=$L37,GW$5<=$M37),1,"") ->  | HG37: =IF(AND(HG$5>=$L37,HG$5<=$M37),1,"") ->  | HQ37: =IF(AND(HQ$5>=$L37,HQ$5<=$M37),1,"") ->  | IA37: =IF(AND(IA$5>=$L37,IA$5<=$M37),1,"") ->  | IK37: =IF(AND(IK$5>=$L37,IK$5<=$M37),1,"") -> 
A38: 3.9 | B38: x | C38: Aktivitet | J38: =VLOOKUP(A38,Aktivitetsplan!A:X,21,FALSE) -> 0 | K38: =VLOOKUP(A38,Aktivitetsplan!A:X,22,FALSE) -> 0 | M38: 0 | N38: 0
A39: 3.10 | B39: x | C39: Aktivitet | J39: =VLOOKUP(A39,Aktivitetsplan!A:X,21,FALSE) -> 0 | K39: =VLOOKUP(A39,Aktivitetsplan!A:X,22,FALSE) -> 0 | M39: 0 | N39: =SUM(O39:IT39) -> 0
A40: 4 | C40: Milepæl | E40: =MIN(E41:E50) -> 00:00:00 | F40: =MAX(F41:F50) -> 00:00:00 | G40: =MAX(G41:G50) -> 00:00:00 | J40: =VLOOKUP(A40,Aktivitetsplan!A:X,21,FALSE) -> 0 | K40: =VLOOKUP(A40,Aktivitetsplan!A:X,22,FALSE) -> 0 | L40: =MIN(L41:L50) -> 0 | M40: =MAX(M41:M50) -> 0 | N40: 0
A41: 4.1 | B41: x | C41: Aktivitet | J41: =VLOOKUP(A41,Aktivitetsplan!A:X,21,FALSE) -> 0 | K41: =VLOOKUP(A41,Aktivitetsplan!A:X,22,FALSE) -> 0 | L41: =IF(E41=F$5,H$5,E41-$O$6+1) ->  | M41: =IF(F41=F$5,F$5,F41-$O$6+1) -> 0 | N41: 0
A42: 4.2 | B42: x | C42: Aktivitet | J42: =VLOOKUP(A42,Aktivitetsplan!A:X,21,FALSE) -> 0 | K42: =VLOOKUP(A42,Aktivitetsplan!A:X,22,FALSE) -> 0 | M42: 0 | N42: 0
A43: 4.3 | B43: x | C43: Aktivitet | J43: =VLOOKUP(A43,Aktivitetsplan!A:X,21,FALSE) -> 0 | K43: =VLOOKUP(A43,Aktivitetsplan!A:X,22,FALSE) -> 0 | M43: 0 | N43: 0
A44: 4.4 | B44: x | C44: Aktivitet | J44: =VLOOKUP(A44,Aktivitetsplan!A:X,21,FALSE) -> 0 | K44: =VLOOKUP(A44,Aktivitetsplan!A:X,22,FALSE) -> 0 | M44: 0 | N44: 0
A45: 4.5 | B45: x | C45: Aktivitet | J45: =VLOOKUP(A45,Aktivitetsplan!A:X,21,FALSE) -> 0 | K45: =VLOOKUP(A45,Aktivitetsplan!A:X,22,FALSE) -> 0 | M45: 0 | N45: 0
A46: 4.6 | B46: x | C46: Aktivitet | J46: =VLOOKUP(A46,Aktivitetsplan!A:X,21,FALSE) -> 0 | K46: =VLOOKUP(A46,Aktivitetsplan!A:X,22,FALSE) -> 0 | M46: 0 | N46: 0
A47: 4.7 | B47: x | C47: Aktivitet | J47: =VLOOKUP(A47,Aktivitetsplan!A:X,21,FALSE) -> 0 | K47: =VLOOKUP(A47,Aktivitetsplan!A:X,22,FALSE) -> 0 | M47: 0 | N47: 0 | O47: =IF(AND(O$5>=$L47,O$5<=$M47),1,"") ->  | Y47: =IF(AND(Y$5>=$L47,Y$5<=$M47),1,"") ->  | AI47: =IF(AND(AI$5>=$L47,AI$5<=$M47),1,"") ->  | AS47: =IF(AND(AS$5>=$L47,AS$5<=$M47),1,"") ->  | BC47: =IF(AND(BC$5>=$L47,BC$5<=$M47),1,"") ->  | BM47: =IF(AND(BM$5>=$L47,BM$5<=$M47),1,"") ->  | BW47: =IF(AND(BW$5>=$L47,BW$5<=$M47),1,"") ->  | CG47: =IF(AND(CG$5>=$L47,CG$5<=$M47),1,"") ->  | CQ47: =IF(AND(CQ$5>=$L47,CQ$5<=$M47),1,"") ->  | DA47: =IF(AND(DA$5>=$L47,DA$5<=$M47),1,"") ->  | DK47: =IF(AND(DK$5>=$L47,DK$5<=$M47),1,"") ->  | DU47: =IF(AND(DU$5>=$L47,DU$5<=$M47),1,"") ->  | EE47: =IF(AND(EE$5>=$L47,EE$5<=$M47),1,"") ->  | EO47: =IF(AND(EO$5>=$L47,EO$5<=$M47),1,"") ->  | EY47: =IF(AND(EY$5>=$L47,EY$5<=$M47),1,"") ->  | FI47: =IF(AND(FI$5>=$L47,FI$5<=$M47),1,"") ->  | FS47: =IF(AND(FS$5>=$L47,FS$5<=$M47),1,"") ->  | GC47: =IF(AND(GC$5>=$L47,GC$5<=$M47),1,"") ->  | GM47: =IF(AND(GM$5>=$L47,GM$5<=$M47),1,"") ->  | GW47: =IF(AND(GW$5>=$L47,GW$5<=$M47),1,"") ->  | HG47: =IF(AND(HG$5>=$L47,HG$5<=$M47),1,"") ->  | HQ47: =IF(AND(HQ$5>=$L47,HQ$5<=$M47),1,"") ->  | IA47: =IF(AND(IA$5>=$L47,IA$5<=$M47),1,"") ->  | IK47: =IF(AND(IK$5>=$L47,IK$5<=$M47),1,"") -> 
A48: 4.8 | B48: x | C48: Aktivitet | J48: =VLOOKUP(A48,Aktivitetsplan!A:X,21,FALSE) -> 0 | K48: =VLOOKUP(A48,Aktivitetsplan!A:X,22,FALSE) -> 0 | M48: 0 | N48: 0
A49: 4.9 | B49: x | C49: Aktivitet | J49: =VLOOKUP(A49,Aktivitetsplan!A:X,21,FALSE) -> 0 | K49: =VLOOKUP(A49,Aktivitetsplan!A:X,22,FALSE) -> 0 | M49: 0 | N49: 0
A50: 4.10 | B50: x | C50: Aktivitet | J50: =VLOOKUP(A50,Aktivitetsplan!A:X,21,FALSE) -> 0 | K50: =VLOOKUP(A50,Aktivitetsplan!A:X,22,FALSE) -> 0 | M50: 0 | N50: 0
A51: 5 | C51: Milepæl | E51: =MIN(E52:E61) -> 00:00:00 | F51: =MAX(F52:F61) -> 00:00:00 | G51: =MAX(G52:G61) -> 00:00:00 | J51: =VLOOKUP(A51,Aktivitetsplan!A:X,21,FALSE) -> 0 | K51: =VLOOKUP(A51,Aktivitetsplan!A:X,22,FALSE) -> 0 | L51: =MIN(L52:L61) -> 0 | M51: =MAX(M52:M61) -> 0 | N51: 0
A52: 5.1 | B52: x | C52: Aktivitet | J52: =VLOOKUP(A52,Aktivitetsplan!A:X,21,FALSE) -> 0 | K52: =VLOOKUP(A52,Aktivitetsplan!A:X,22,FALSE) -> 0 | L52: =IF(E52=F$5,H$5,E52-$O$6+1) ->  | M52: =IF(F52=F$5,F$5,F52-$O$6+1) -> 0 | N52: 0
A53: 5.2 | B53: x | C53: Aktivitet | J53: =VLOOKUP(A53,Aktivitetsplan!A:X,21,FALSE) -> 0 | K53: =VLOOKUP(A53,Aktivitetsplan!A:X,22,FALSE) -> 0 | M53: 0 | N53: 0
A54: 5.3 | B54: x | C54: Aktivitet | J54: =VLOOKUP(A54,Aktivitetsplan!A:X,21,FALSE) -> 0 | K54: =VLOOKUP(A54,Aktivitetsplan!A:X,22,FALSE) -> 0 | M54: 0 | N54: 0
A55: 5.4 | B55: x | C55: Aktivitet | J55: =VLOOKUP(A55,Aktivitetsplan!A:X,21,FALSE) -> 0 | K55: =VLOOKUP(A55,Aktivitetsplan!A:X,22,FALSE) -> 0 | M55: 0 | N55: 0
A56: 5.5 | B56: x | C56: Aktivitet | J56: =VLOOKUP(A56,Aktivitetsplan!A:X,21,FALSE) -> 0 | K56: =VLOOKUP(A56,Aktivitetsplan!A:X,22,FALSE) -> 0 | M56: 0 | N56: 0
A57: 5.6 | B57: x | C57: Aktivitet | J57: =VLOOKUP(A57,Aktivitetsplan!A:X,21,FALSE) -> 0 | K57: =VLOOKUP(A57,Aktivitetsplan!A:X,22,FALSE) -> 0 | M57: 0 | N57: 0 | O57: =IF(AND(O$5>=$L57,O$5<=$M57),1,"") ->  | Y57: =IF(AND(Y$5>=$L57,Y$5<=$M57),1,"") ->  | AI57: =IF(AND(AI$5>=$L57,AI$5<=$M57),1,"") ->  | AS57: =IF(AND(AS$5>=$L57,AS$5<=$M57),1,"") ->  | BC57: =IF(AND(BC$5>=$L57,BC$5<=$M57),1,"") ->  | BM57: =IF(AND(BM$5>=$L57,BM$5<=$M57),1,"") ->  | BW57: =IF(AND(BW$5>=$L57,BW$5<=$M57),1,"") ->  | CG57: =IF(AND(CG$5>=$L57,CG$5<=$M57),1,"") ->  | CQ57: =IF(AND(CQ$5>=$L57,CQ$5<=$M57),1,"") ->  | DA57: =IF(AND(DA$5>=$L57,DA$5<=$M57),1,"") ->  | DK57: =IF(AND(DK$5>=$L57,DK$5<=$M57),1,"") ->  | DU57: =IF(AND(DU$5>=$L57,DU$5<=$M57),1,"") ->  | EE57: =IF(AND(EE$5>=$L57,EE$5<=$M57),1,"") ->  | EO57: =IF(AND(EO$5>=$L57,EO$5<=$M57),1,"") ->  | EY57: =IF(AND(EY$5>=$L57,EY$5<=$M57),1,"") ->  | FI57: =IF(AND(FI$5>=$L57,FI$5<=$M57),1,"") ->  | FS57: =IF(AND(FS$5>=$L57,FS$5<=$M57),1,"") ->  | GC57: =IF(AND(GC$5>=$L57,GC$5<=$M57),1,"") ->  | GM57: =IF(AND(GM$5>=$L57,GM$5<=$M57),1,"") ->  | GW57: =IF(AND(GW$5>=$L57,GW$5<=$M57),1,"") ->  | HG57: =IF(AND(HG$5>=$L57,HG$5<=$M57),1,"") ->  | HQ57: =IF(AND(HQ$5>=$L57,HQ$5<=$M57),1,"") ->  | IA57: =IF(AND(IA$5>=$L57,IA$5<=$M57),1,"") ->  | IK57: =IF(AND(IK$5>=$L57,IK$5<=$M57),1,"") -> 
A58: 5.7 | B58: x | C58: Aktivitet | J58: =VLOOKUP(A58,Aktivitetsplan!A:X,21,FALSE) -> 0 | K58: =VLOOKUP(A58,Aktivitetsplan!A:X,22,FALSE) -> 0 | M58: 0 | N58: 0
A59: 5.8 | B59: x | C59: Aktivitet | J59: =VLOOKUP(A59,Aktivitetsplan!A:X,21,FALSE) -> 0 | K59: =VLOOKUP(A59,Aktivitetsplan!A:X,22,FALSE) -> 0 | M59: 0 | N59: 0
A60: 5.9 | B60: x | C60: Aktivitet | J60: =VLOOKUP(A60,Aktivitetsplan!A:X,21,FALSE) -> 0 | K60: =VLOOKUP(A60,Aktivitetsplan!A:X,22,FALSE) -> 0 | M60: 0 | N60: 0
A61: 5.10 | B61: x | C61: Aktivitet | J61: =VLOOKUP(A61,Aktivitetsplan!A:X,21,FALSE) -> 0 | K61: =VLOOKUP(A61,Aktivitetsplan!A:X,22,FALSE) -> 0 | M61: 0 | N61: 0
A62: 6 | C62: Milepæl | E62: =MIN(E63:E72) -> 00:00:00 | F62: =MAX(F63:F72) -> 00:00:00 | G62: =MAX(G63:G72) -> 00:00:00 | J62: =VLOOKUP(A62,Aktivitetsplan!A:X,21,FALSE) -> 0 | K62: =VLOOKUP(A62,Aktivitetsplan!A:X,22,FALSE) -> 0 | L62: =MIN(L63:L72) -> 0 | M62: =MAX(M63:M72) -> 0 | N62: 0
A63: 6.1 | B63: x | C63: Aktivitet | J63: =VLOOKUP(A63,Aktivitetsplan!A:X,21,FALSE) -> 0 | K63: =VLOOKUP(A63,Aktivitetsplan!A:X,22,FALSE) -> 0 | L63: =IF(E63=F$5,H$5,E63-$O$6+1) ->  | M63: =IF(F63=F$5,F$5,F63-$O$6+1) -> 0 | N63: 0
A64: 6.2 | B64: x | C64: Aktivitet | J64: =VLOOKUP(A64,Aktivitetsplan!A:X,21,FALSE) -> 0 | K64: =VLOOKUP(A64,Aktivitetsplan!A:X,22,FALSE) -> 0 | M64: 0 | N64: 0
A65: 6.3 | B65: x | C65: Aktivitet | J65: =VLOOKUP(A65,Aktivitetsplan!A:X,21,FALSE) -> 0 | K65: =VLOOKUP(A65,Aktivitetsplan!A:X,22,FALSE) -> 0 | M65: 0 | N65: 0
A66: 6.4 | B66: x | C66: Aktivitet | J66: =VLOOKUP(A66,Aktivitetsplan!A:X,21,FALSE) -> 0 | K66: =VLOOKUP(A66,Aktivitetsplan!A:X,22,FALSE) -> 0 | M66: 0 | N66: 0
A67: 6.5 | B67: x | C67: Aktivitet | J67: =VLOOKUP(A67,Aktivitetsplan!A:X,21,FALSE) -> 0 | K67: =VLOOKUP(A67,Aktivitetsplan!A:X,22,FALSE) -> 0 | M67: 0 | N67: 0 | O67: =IF(AND(O$5>=$L67,O$5<=$M67),1,"") ->  | Y67: =IF(AND(Y$5>=$L67,Y$5<=$M67),1,"") ->  | AI67: =IF(AND(AI$5>=$L67,AI$5<=$M67),1,"") ->  | AS67: =IF(AND(AS$5>=$L67,AS$5<=$M67),1,"") ->  | BC67: =IF(AND(BC$5>=$L67,BC$5<=$M67),1,"") ->  | BM67: =IF(AND(BM$5>=$L67,BM$5<=$M67),1,"") ->  | BW67: =IF(AND(BW$5>=$L67,BW$5<=$M67),1,"") ->  | CG67: =IF(AND(CG$5>=$L67,CG$5<=$M67),1,"") ->  | CQ67: =IF(AND(CQ$5>=$L67,CQ$5<=$M67),1,"") ->  | DA67: =IF(AND(DA$5>=$L67,DA$5<=$M67),1,"") ->  | DK67: =IF(AND(DK$5>=$L67,DK$5<=$M67),1,"") ->  | DU67: =IF(AND(DU$5>=$L67,DU$5<=$M67),1,"") ->  | EE67: =IF(AND(EE$5>=$L67,EE$5<=$M67),1,"") ->  | EO67: =IF(AND(EO$5>=$L67,EO$5<=$M67),1,"") ->  | EY67: =IF(AND(EY$5>=$L67,EY$5<=$M67),1,"") ->  | FI67: =IF(AND(FI$5>=$L67,FI$5<=$M67),1,"") ->  | FS67: =IF(AND(FS$5>=$L67,FS$5<=$M67),1,"") ->  | GC67: =IF(AND(GC$5>=$L67,GC$5<=$M67),1,"") ->  | GM67: =IF(AND(GM$5>=$L67,GM$5<=$M67),1,"") ->  | GW67: =IF(AND(GW$5>=$L67,GW$5<=$M67),1,"") ->  | HG67: =IF(AND(HG$5>=$L67,HG$5<=$M67),1,"") ->  | HQ67: =IF(AND(HQ$5>=$L67,HQ$5<=$M67),1,"") ->  | IA67: =IF(AND(IA$5>=$L67,IA$5<=$M67),1,"") ->  | IK67: =IF(AND(IK$5>=$L67,IK$5<=$M67),1,"") -> 
A68: 6.6 | B68: x | C68: Aktivitet | J68: =VLOOKUP(A68,Aktivitetsplan!A:X,21,FALSE) -> 0 | K68: =VLOOKUP(A68,Aktivitetsplan!A:X,22,FALSE) -> 0 | M68: 0 | N68: 0
A69: 6.7 | B69: x | C69: Aktivitet | J69: =VLOOKUP(A69,Aktivitetsplan!A:X,21,FALSE) -> 0 | K69: =VLOOKUP(A69,Aktivitetsplan!A:X,22,FALSE) -> 0 | M69: 0 | N69: 0
A70: 6.8 | B70: x | C70: Aktivitet | J70: =VLOOKUP(A70,Aktivitetsplan!A:X,21,FALSE) -> 0 | K70: =VLOOKUP(A70,Aktivitetsplan!A:X,22,FALSE) -> 0 | M70: 0 | N70: 0
A71: 6.9 | B71: x | C71: Aktivitet | J71: =VLOOKUP(A71,Aktivitetsplan!A:X,21,FALSE) -> 0 | K71: =VLOOKUP(A71,Aktivitetsplan!A:X,22,FALSE) -> 0 | M71: 0 | N71: =SUM(O71:IT71) -> 0
A72: 6.10 | B72: x | C72: Aktivitet | J72: =VLOOKUP(A72,Aktivitetsplan!A:X,21,FALSE) -> 0 | K72: =VLOOKUP(A72,Aktivitetsplan!A:X,22,FALSE) -> 0 | M72: 0 | N72: 0
A73: 7 | C73: Milepæl | E73: =MIN(E74:E83) -> 00:00:00 | F73: =MAX(F74:F83) -> 00:00:00 | G73: =MAX(G74:G83) -> 00:00:00 | I73: =IF(H73="Ferdig","GRØNN",IF(H73="I henhold til plan","GRØNN",IF(H73="Forsinket - påvirker ikke leveranse","GUL",IF(H73="Forsinket - påvirker leveranse","RØD"," ")))) ->  | J73: =VLOOKUP(A73,Aktivitetsplan!A:X,21,FALSE) -> 0 | K73: =VLOOKUP(A73,Aktivitetsplan!A:X,22,FALSE) -> 0 | L73: =MIN(L74:L83) -> 0 | M73: =MAX(M74:M83) -> 0 | N73: 0
A74: 7.1 | B74: x | C74: Aktivitet | J74: =VLOOKUP(A74,Aktivitetsplan!A:X,21,FALSE) -> 0 | K74: =VLOOKUP(A74,Aktivitetsplan!A:X,22,FALSE) -> 0 | L74: =IF(E74=F$5,H$5,E74-$O$6+1) ->  | M74: =IF(F74=F$5,F$5,F74-$O$6+1) -> 0 | N74: 0
A75: 7.2 | B75: x | C75: Aktivitet | J75: =VLOOKUP(A75,Aktivitetsplan!A:X,21,FALSE) -> 0 | K75: =VLOOKUP(A75,Aktivitetsplan!A:X,22,FALSE) -> 0 | M75: 0 | N75: 0
A76: 7.3 | B76: x | C76: Aktivitet | J76: =VLOOKUP(A76,Aktivitetsplan!A:X,21,FALSE) -> 0 | K76: =VLOOKUP(A76,Aktivitetsplan!A:X,22,FALSE) -> 0 | M76: 0 | N76: 0
A77: 7.4 | B77: x | C77: Aktivitet | J77: =VLOOKUP(A77,Aktivitetsplan!A:X,21,FALSE) -> 0 | K77: =VLOOKUP(A77,Aktivitetsplan!A:X,22,FALSE) -> 0 | M77: 0 | N77: 0
A78: 7.5 | B78: x | C78: Aktivitet | J78: =VLOOKUP(A78,Aktivitetsplan!A:X,21,FALSE) -> 0 | K78: =VLOOKUP(A78,Aktivitetsplan!A:X,22,FALSE) -> 0 | M78: 0 | N78: 0
A79: 7.6 | B79: x | C79: Aktivitet | J79: =VLOOKUP(A79,Aktivitetsplan!A:X,21,FALSE) -> 0 | K79: =VLOOKUP(A79,Aktivitetsplan!A:X,22,FALSE) -> 0 | M79: 0 | N79: 0
A80: 7.7 | B80: x | C80: Aktivitet | J80: =VLOOKUP(A80,Aktivitetsplan!A:X,21,FALSE) -> 0 | K80: =VLOOKUP(A80,Aktivitetsplan!A:X,22,FALSE) -> 0 | M80: 0 | N80: 0
A81: 7.8 | B81: x | C81: Aktivitet | J81: =VLOOKUP(A81,Aktivitetsplan!A:X,21,FALSE) -> 0 | K81: =VLOOKUP(A81,Aktivitetsplan!A:X,22,FALSE) -> 0 | M81: 0 | N81: 0
A82: 7.9 | B82: x | C82: Aktivitet | J82: =VLOOKUP(A82,Aktivitetsplan!A:X,21,FALSE) -> 0 | K82: =VLOOKUP(A82,Aktivitetsplan!A:X,22,FALSE) -> 0 | M82: 0 | N82: 0
A83: 7.10 | B83: x | C83: Aktivitet | J83: =VLOOKUP(A83,Aktivitetsplan!A:X,21,FALSE) -> 0 | K83: =VLOOKUP(A83,Aktivitetsplan!A:X,22,FALSE) -> 0 | M83: 0 | N83: 0 | O83: =IF(AND(O$5>=$L83,O$5<=$M83),1,"") ->  | CA83: =IF(AND(CA$5>=$L83,CA$5<=$M83),1,"") ->  | EM83: =IF(AND(EM$5>=$L83,EM$5<=$M83),1,"") ->  | GY83: =IF(AND(GY$5>=$L83,GY$5<=$M83),1,"") -> 
A84: 8 | C84: Milepæl | E84: =MIN(E85:E94) -> 00:00:00 | F84: =MAX(F85:F94) -> 00:00:00 | G84: =MAX(G85:G94) -> 00:00:00 | J84: =VLOOKUP(A84,Aktivitetsplan!A:X,21,FALSE) -> 0 | K84: =VLOOKUP(A84,Aktivitetsplan!A:X,22,FALSE) -> 0 | L84: =MIN(L85:L94) -> 0 | M84: =MAX(M85:M94) -> 0 | N84: 0
A85: 8.1 | B85: x | C85: Aktivitet | J85: =VLOOKUP(A85,Aktivitetsplan!A:X,21,FALSE) -> 0 | K85: =VLOOKUP(A85,Aktivitetsplan!A:X,22,FALSE) -> 0 | L85: =IF(E85=F$5,H$5,E85-$O$6+1) ->  | M85: =IF(F85=F$5,F$5,F85-$O$6+1) -> 0 | N85: 0 | O85: =IF(AND(O$5>=$L85,O$5<=$M85),1,"") ->  | AE85: =IF(AND(AE$5>=$L85,AE$5<=$M85),1,"") ->  | AU85: =IF(AND(AU$5>=$L85,AU$5<=$M85),1,"") ->  | BK85: =IF(AND(BK$5>=$L85,BK$5<=$M85),1,"") ->  | CA85: =IF(AND(CA$5>=$L85,CA$5<=$M85),1,"") ->  | CQ85: =IF(AND(CQ$5>=$L85,CQ$5<=$M85),1,"") ->  | DG85: =IF(AND(DG$5>=$L85,DG$5<=$M85),1,"") ->  | DW85: =IF(AND(DW$5>=$L85,DW$5<=$M85),1,"") ->  | EM85: =IF(AND(EM$5>=$L85,EM$5<=$M85),1,"") ->  | FC85: =IF(AND(FC$5>=$L85,FC$5<=$M85),1,"") ->  | FS85: =IF(AND(FS$5>=$L85,FS$5<=$M85),1,"") ->  | GI85: =IF(AND(GI$5>=$L85,GI$5<=$M85),1,"") ->  | GY85: =IF(AND(GY$5>=$L85,GY$5<=$M85),1,"") ->  | HO85: =IF(AND(HO$5>=$L85,HO$5<=$M85),1,"") ->  | IE85: =IF(AND(IE$5>=$L85,IE$5<=$M85),1,"") -> 
A86: 8.2 | B86: x | C86: Aktivitet | J86: =VLOOKUP(A86,Aktivitetsplan!A:X,21,FALSE) -> 0 | K86: =VLOOKUP(A86,Aktivitetsplan!A:X,22,FALSE) -> 0 | M86: 0 | N86: 0
A87: 8.3 | B87: x | C87: Aktivitet | J87: =VLOOKUP(A87,Aktivitetsplan!A:X,21,FALSE) -> 0 | K87: =VLOOKUP(A87,Aktivitetsplan!A:X,22,FALSE) -> 0 | M87: 0 | N87: 0
A88: 8.4 | B88: x | C88: Aktivitet | J88: =VLOOKUP(A88,Aktivitetsplan!A:X,21,FALSE) -> 0 | K88: =VLOOKUP(A88,Aktivitetsplan!A:X,22,FALSE) -> 0 | M88: 0 | N88: 0
A89: 8.5 | B89: x | C89: Aktivitet | J89: =VLOOKUP(A89,Aktivitetsplan!A:X,21,FALSE) -> 0 | K89: =VLOOKUP(A89,Aktivitetsplan!A:X,22,FALSE) -> 0 | M89: 0 | N89: 0
A90: 8.6 | B90: x | C90: Aktivitet | J90: =VLOOKUP(A90,Aktivitetsplan!A:X,21,FALSE) -> 0 | K90: =VLOOKUP(A90,Aktivitetsplan!A:X,22,FALSE) -> 0 | M90: 0 | N90: 0
A91: 8.7 | B91: x | C91: Aktivitet | J91: =VLOOKUP(A91,Aktivitetsplan!A:X,21,FALSE) -> 0 | K91: =VLOOKUP(A91,Aktivitetsplan!A:X,22,FALSE) -> 0 | M91: 0 | N91: 0
A92: 8.8 | B92: x | C92: Aktivitet | J92: =VLOOKUP(A92,Aktivitetsplan!A:X,21,FALSE) -> 0 | K92: =VLOOKUP(A92,Aktivitetsplan!A:X,22,FALSE) -> 0 | M92: 0 | N92: 0
A93: 8.9 | B93: x | C93: Aktivitet | J93: =VLOOKUP(A93,Aktivitetsplan!A:X,21,FALSE) -> 0 | K93: =VLOOKUP(A93,Aktivitetsplan!A:X,22,FALSE) -> 0 | M93: 0 | N93: 0
A94: 8.10 | B94: x | C94: Aktivitet | J94: =VLOOKUP(A94,Aktivitetsplan!A:X,21,FALSE) -> 0 | K94: =VLOOKUP(A94,Aktivitetsplan!A:X,22,FALSE) -> 0 | M94: 0 | N94: 0

Sheet Aktivitetsplan
U1: U | V1: Utfører arbeidet
C2: Prosjekt: | D2: <Prosjektnavn> | U2: B | V2: Hovedbeslutning
C3: Prosjekteier: | D3: <Prosjekteier> | U3: b | V3: Delbeslutning
C4: Prosjektleder: | D4: <Prosjektleder> | U4: a | V4: Fremdriftsansvar
C5: Dokumenteier: | D5: <Dokumenteier> | U5: R | V5: Må rådspørres
C6: Sist oppdatert: | D6: <Dato> | U6: I | V6: Må informeres
U7: r | V7: Kan tilkalles for diskusjon
Z9: Tidsplan (uke)
A10: WBS | B10: AKTIVITET | C10: Navn | D10: Navn | E10: Navn | F10: Navn | G10: Navn | H10: Navn | I10: Navn | J10: Navn | K10: Navn | L10: Navn | M10: Navn | N10: Navn | O10: Navn | P10: Navn | Q10: Navn | R10: Navn | S10: Navn | T10: Navn | U10: Estimerte timer | V10: Tidsbruk | W10: Gjenst. | X10: Totalt | Z10: 1 | AA10: =Z10+1 -> 2 | AB10: =AA10+1 -> 3 | AC10: 4 | AD10: 5 | AE10: 6 | AF10: 7 | AG10: 8 | AH10: 9 | AI10: 10 | AJ10: 11 | AK10: 12 | AL10: 13 | AM10: 14 | AN10: 15 | AO10: 16 | AP10: 17 | AQ10: 18 | AR10: 19 | AS10: 20 | AT10: 21 | AU10: 22 | AV10: 23 | AW10: 24 | AX10: 25 | AY10: 26 | AZ10: 27 | BA10: 28 | BB10: 29 | BC10: 30 | BD10: 31 | BE10: 32 | BF10: 33 | BG10: 34 | BH10: 35 | BI10: 36 | BJ10: 37 | BK10: 38 | BL10: 39 | BM10: 40 | BN10: 41 | BO10: 42 | BP10: 43 | BQ10: 44 | BR10: 45 | BS10: 46 | BT10: =BS10+1 -> 47 | BU10: 48 | BV10: 49 | BW10: 50 | BX10: 51 | BY10: 52 | BZ10: 53 | CA10: 54
A11: 1 | B11: Milepæl
A12: 1.1 | B12: Aktivitet
A13: 1.2 | B13: Aktivitet
A14: 1.3 | B14: Aktivitet
A15: 1.4 | B15: Aktivitet
A16: 1.5 | B16: Aktivitet
A17: 1.6 | B17: Aktivitet
A18: 1.7 | B18: Aktivitet
A19: 1.8 | B19: Aktivitet
A20: 1.9 | B20: Aktivitet
A21: 1.10 | B21: Aktivitet
A22: 2 | B22: Milepæl
A23: 2.1 | B23: Aktivitet
A24: 2.2 | B24: Aktivitet
A25: 2.3 | B25: Aktivitet
A26: 2.4 | B26: Aktivitet
A27: 2.5 | B27: Aktivitet
A28: 2.6 | B28: Aktivitet
A29: 2.7 | B29: Aktivitet
A30: 2.8 | B30: Aktivitet
A31: 2.9 | B31: Aktivitet
A32: 2.10 | B32: Aktivitet
A33: 3 | B33: Milepæl
A34: 3.1 | B34: Aktivitet
A35: 3.2 | B35: Aktivitet
A36: 3.3 | B36: Aktivitet
A37: 3.4 | B37: Aktivitet
A38: 3.5 | B38: Aktivitet
A39: 3.6 | B39: Aktivitet
A40: 3.7 | B40: Aktivitet
A41: 3.8 | B41: Aktivitet
A42: 3.9 | B42: Aktivitet
A43: 3.10 | B43: Aktivitet
A44: 4 | B44: Milepæl
A45: 4.1 | B45: Aktivitet
A46: 4.2 | B46: Aktivitet
A47: 4.3 | B47: Aktivitet
A48: 4.4 | B48: Aktivitet
A49: 4.5 | B49: Aktivitet
A50: 4.6 | B50: Aktivitet
A51: 4.7 | B51: Aktivitet
A52: 4.8 | B52: Aktivitet
A53: 4.9 | B53: Aktivitet
A54: 4.10 | B54: Aktivitet
A55: 5 | B55: Milepæl
A56: 5.1 | B56: Aktivitet
A57: 5.2 | B57: Aktivitet
A58: 5.3 | B58: Aktivitet
A59: 5.4 | B59: Aktivitet
A60: 5.5 | B60: Aktivitet
A61: 5.6 | B61: Aktivitet
A62: 5.7 | B62: Aktivitet
A63: 5.8 | B63: Aktivitet
A64: 5.9 | B64: Aktivitet
A65: 5.10 | B65: Aktivitet
A66: 6 | B66: Milepæl
A67: 6.1 | B67: Aktivitet
A68: 6.2 | B68: Aktivitet
A69: 6.3 | B69: Aktivitet
A70: 6.4 | B70: Aktivitet
A71: 6.5 | B71: Aktivitet
A72: 6.6 | B72: Aktivitet
A73: 6.7 | B73: Aktivitet
A74: 6.8 | B74: Aktivitet
A75: 6.9 | B75: Aktivitet
A76: 6.10 | B76: Aktivitet
A77: 7 | B77: Milepæl
A78: 7.1 | B78: Aktivitet
A79: 7.2 | B79: Aktivitet
A80: 7.3 | B80: Aktivitet
A81: 7.4 | B81: Aktivitet
A82: 7.5 | B82: Aktivitet
A83: 7.6 | B83: Aktivitet
A84: 7.7 | B84: Aktivitet
A85: 7.8 | B85: Aktivitet
A86: 7.9 | B86: Aktivitet
A87: 7.10 | B87: Aktivitet
A88: 8 | B88: Milepæl
A89: 8.1 | B89: Aktivitet
A90: 8.2 | B90: Aktivitet
A91: 8.3 | B91: Aktivitet
A92: 8.4 | B92: Aktivitet
A93: 8.5 | B93: Aktivitet
A94: 8.6 | B94: Aktivitet
A95: 8.7 | B95: Aktivitet
A96: 8.8 | B96: Aktivitet
A97: 8.9 | B97: Aktivitet
A98: 8.10 | B98: Aktivitet
